fUSD/lending_fUSD_20260527
["ID","MTS","AMOUNT","RATE_DAILY","PERIOD"]
[423145085,1779892274000,-176.1255574,0.0002,2]
[423145030,1779892274000,-254.0,0.00017148,2]
[423145039,1779892274000,-2000.0,0.00017731,2]
[423145037,1779892274000,-501.4576724,0.00017676,2]
[423145034,1779892274000,-420.0,0.00017149,2]
[423145032,1779892274000,-157.0,0.00017148,2]
[423145031,1779892274000,-170.0,0.00017148,2]
[423145035,1779892274000,-192.18,0.000172,2]
[423145033,1779892274000,-364.0,0.00017148,2]
[423145036,1779892274000,-166.66,0.00017305,2]
[423145040,1779892274000,-166.66,0.00017841,2]
[423145044,1779892274000,-23267.02651689,0.000179,2]
[423145042,1779892274000,-300.0,0.00017899,2]
[423145043,1779892274000,-351.41551866,0.00017899,2]
[423145041,1779892274000,-420.0,0.00017894,2]
[423145050,1779892274000,-254.0,0.00018148,2]
[423145046,1779892274000,-23267.02651688,0.000179,2]
[423145049,1779892274000,-3546.94,0.00018147,2]
[423145048,1779892274000,-15302.86476602,0.00017942,2]
[423145045,1779892274000,-23267.02651688,0.000179,2]
[423145047,1779892274000,-23267.02651688,0.000179,2]
[423145052,1779892274000,-170.0,0.00018148,2]
[423145062,1779892274000,-157.0,0.00019148,2]
[423145051,1779892274000,-254.0,0.00018148,2]
[423145055,1779892274000,-166.66,0.00018377,2]
[423145053,1779892274000,-157.0,0.00018148,2]
[423145086,1779892274000,-192.18,0.000201,2]
[423145082,1779892274000,-176.12555738,0.0002,2]
[423145087,1779892274000,-254.0,0.00020148,2]
[423145117,1779892274000,-189.0,0.00022,2]
[423145115,1779892274000,-471.0,0.00022,2]
[423145120,1779892274000,-259.2305698,0.00022148,2]
[423145121,1779892274000,-266.65507168,0.00022148,2]
[423145130,1779892274000,-300.0,0.00022876,2]
[423145131,1779892274000,-155.59528817,0.000229,2]
[423145124,1779892274000,-553.89082023,0.0002225,2]
[423145127,1779892274000,-280.0,0.00022659,2]
[423145123,1779892274000,-374.68705661,0.00022148,2]
[423145125,1779892274000,-1360.8,0.00022353,2]
[423145132,1779892274000,-183.0,0.00023,2]
[423145128,1779892274000,-150.0,0.00022659,2]
[423145112,1779892274000,-5000.0,0.00021918,2]
[423145129,1779892274000,-219.0,0.00022659,2]
[423145133,1779892274000,-471.0,0.00023,2]
[423145134,1779892274000,-218.0,0.00023,2]
[423145136,1779892274000,-1040.0,0.00023,2]
[423145142,1779892274000,-183.0,0.00024,2]
[423145143,1779892274000,-471.0,0.00024,2]
[423145139,1779892274000,-500.0,0.00023299,2]
[423145135,1779892274000,-189.0,0.00023,2]
[423145137,1779892274000,-192.18,0.00023,7]
[423145141,1779892274000,-1155.60166761,0.00023812,2]
[423145140,1779892274000,-2000.0,0.00023641,2]
[423145138,1779892274000,-190.0,0.00023,2]
[423145089,1779892274000,-170.0,0.00020148,2]
[423145122,1779892274000,-172.4153596,0.00022148,2]
[423145114,1779892274000,-169.39016287,0.00022,2]
[423145126,1779892274000,-185.07,0.00022466,2]
[423145110,1779892274000,-152.0,0.00021345,2]
[423145090,1779892274000,-157.0,0.00020148,2]
[423145116,1779892274000,-218.0,0.00022,2]
[423145088,1779892274000,-254.0,0.00020148,2]
[423145093,1779892274000,-500.0,0.00020488,2]
[423145092,1779892274000,-1360.8,0.00020381,2]
[423145091,1779892274000,-364.0,0.00020148,2]
[423145094,1779892274000,-1035.7,0.00020548,2]
[423145096,1779892274000,-15302.86476602,0.00020985,2]
[423145097,1779892274000,-183.0,0.00021,2]
[423145100,1779892274000,-218.0,0.00021,2]
[423145098,1779892274000,-158.0,0.00021,2]
[423145099,1779892274000,-471.0,0.00021,2]
[423145102,1779892274000,-1040.0,0.00021,2]
[423145095,1779892274000,-300.0,0.00020655,2]
[423145101,1779892274000,-189.0,0.00021,2]
[423145113,1779892274000,-183.0,0.00022,2]
[423145111,1779892274000,-2000.0,0.00021671,2]
[423145108,1779892274000,-364.0,0.00021148,2]
[423145119,1779892274000,-190.0,0.00022,2]
[423145109,1779892274000,-7669.29,0.00021273,2]
[423145118,1779892274000,-1040.0,0.00022,2]
[423145104,1779892274000,-254.0,0.00021148,2]
[423145107,1779892274000,-163.25696447,0.00021148,2]
[423145105,1779892274000,-254.0,0.00021148,2]
[423145103,1779892274000,-190.0,0.00021,2]
[423145106,1779892274000,-170.0,0.00021148,2]
[423145192,1779892275000,-151.0,0.00027318,2]
[423145193,1779892275000,-151.0,0.00027318,2]
[423145191,1779892275000,-1183.951803,0.00027318,2]
[423145185,1779892275000,-513.0,0.00026976,4]
[423145182,1779892275000,-959.0,0.000267,7]
[423145194,1779892275000,-151.0,0.00027318,2]
[423145177,1779892275000,-500.0,0.00026,2]
[423145174,1779892275000,-418.2512123,0.00025996,2]
[423145180,1779892275000,-192.18,0.000263,7]
[423145178,1779892275000,-10896.6585093,0.00026,10]
[423145179,1779892275000,-1360.8,0.00026296,2]
[423145188,1779892275000,-1183.951803,0.00027318,2]
[423145183,1779892275000,-153.09,0.00026844,2]
[423145184,1779892275000,-4309.17,0.00026881,7]
[423145204,1779892275000,-151.0,0.00027397,2]
[423145190,1779892275000,-1183.951803,0.00027318,2]
[423145189,1779892275000,-1183.951803,0.00027318,2]
[423145186,1779892275000,-225.81,0.00027,14]
[423145195,1779892275000,-151.0,0.00027318,2]
[423145197,1779892275000,-300.0,0.00027396,10]
[423145198,1779892275000,-1500.0,0.00027397,2]
[423145196,1779892275000,-151.0,0.00027318,2]
[423145203,1779892275000,-151.0,0.00027397,2]
[423145205,1779892275000,-151.0,0.00027397,2]
[423145199,1779892275000,-1467.38,0.00027397,2]
[423145201,1779892275000,-151.0,0.00027397,2]
[423145202,1779892275000,-151.0,0.00027397,2]
[423145175,1779892275000,-184.26467155,0.00025996,2]
[423145187,1779892275000,-15302.86476602,0.00027071,2]
[423145176,1779892275000,-289.79158953,0.00025996,2]
[423145154,1779892275000,-151.0,0.00024658,2]
[423145173,1779892275000,-153.09,0.00025885,2]
[423145200,1779892275000,-151.0,0.00027397,2]
[423145145,1779892275000,-189.0,0.00024,2]
[423145144,1779892275000,-218.0,0.00024,2]
[423145148,1779892275000,-15302.86476602,0.00024028,2]
[423145152,1779892275000,-1000.0,0.00024658,2]
[423145149,1779892275000,-271.34,0.00024083,2]
[423145155,1779892275000,-168.5,0.00024658,2]
[423145153,1779892275000,-246.37,0.00024658,2]
[423145146,1779892275000,-1040.0,0.00024,2]
[423145156,1779892275000,-162.5,0.00024658,2]
[423145150,1779892275000,-175.78,0.00024174,2]
[423145151,1779892275000,-1360.8,0.00024324,2]
[423145157,1779892275000,-157.34450283,0.00024907,2]
[423145170,1779892275000,-4309.17,0.00025618,7]
[423145159,1779892275000,-196.7893954,0.00025,2]
[423145169,1779892275000,-513.0,0.00025082,2]
[423145164,1779892275000,-197.54272136,0.00025,2]
[423145158,1779892275000,-153.09,0.00024927,2]
[423145160,1779892275000,-480.79515969,0.00025,2]
[423145161,1779892275000,-226.0,0.00025,2]
[423145168,1779892275000,-171.19,0.00025,2]
[423145163,1779892275000,-1051.98581358,0.00025,2]
[423145162,1779892275000,-206.06319664,0.00025,2]
[423145166,1779892275000,-171.19,0.00025,2]
[423145167,1779892275000,-171.19,0.00025,2]
[423145171,1779892275000,-175.78,0.00025786,2]
[423145181,1779892275000,-2000.0,0.0002664,7]
[423145172,1779892275000,-295.7,0.00025786,2]
[423145165,1779892275000,-171.19,0.00025,2]
[423145207,1779892275000,-462.613322,0.00027397,2]
[423145147,1779892275000,-190.0,0.00024,2]
[423145208,1779892275000,-462.613322,0.00027397,2]
[423145243,1779892275000,-192.18,0.000289,7]
[423145241,1779892275000,-251.0,0.00028808,2]
[423145240,1779892275000,-150.0,0.00028808,2]
[423145244,1779892275000,-352.5091558,0.00029292,2]
[423145246,1779892275000,-363.05567241,0.000295,2]
[423145248,1779892275000,-363.05567238,0.000295,2]
[423145251,1779892275000,-462.613322,0.00029538,7]
[423145250,1779892275000,-462.613322,0.00029538,7]
[423145254,1779892275000,-1555.496535,0.00029538,7]
[423145255,1779892275000,-1555.496535,0.00029538,7]
[423145257,1779892275000,-153.322172,0.00029538,7]
[423145256,1779892275000,-1555.496535,0.00029538,7]
[423145249,1779892275000,-462.613322,0.00029538,7]
[423145242,1779892275000,-513.0,0.0002887,6]
[423145252,1779892275000,-462.613322,0.00029538,7]
[423145258,1779892275000,-187.442691,0.00029538,7]
[423145247,1779892275000,-363.05567238,0.000295,2]
[423145259,1779892275000,-553.89082023,0.000296,2]
[423145261,1779892275000,-153.09,0.0002972,2]
[423145263,1779892275000,-183.0,0.00029725,30]
[423145264,1779892275000,-158.0,0.00029725,30]
[423145260,1779892275000,-1000.0,0.000297,7]
[423145262,1779892275000,-165.98547887,0.0002972,2]
[423145268,1779892275000,-170.0,0.00029725,30]
[423145269,1779892275000,-157.0,0.00029725,30]
[423145267,1779892275000,-471.0,0.00029725,30]
[423145266,1779892275000,-254.0,0.00029725,30]
[423145206,1779892275000,-246.37,0.00027397,2]
[423145253,1779892275000,-1555.496535,0.00029538,7]
[423145237,1779892275000,-200.0,0.00028806,30]
[423145265,1779892275000,-254.0,0.00029725,30]
[423145245,1779892275000,-4309.17,0.00029406,7]
[423145238,1779892275000,-165.98547887,0.00028806,30]
[423145209,1779892275000,-462.613322,0.00027397,2]
[423145220,1779892275000,-325.0,0.00028,2]
[423145219,1779892275000,-857.97240036,0.00028,60]
[423145210,1779892275000,-462.613322,0.00027397,2]
[423145212,1779892275000,-269.22,0.00027397,10]
[423145215,1779892275000,-5733.66,0.000274,14]
[423145214,1779892275000,-190.97,0.000274,7]
[423145218,1779892275000,-153.09,0.00027803,2]
[423145216,1779892275000,-959.0,0.000275,7]
[423145217,1779892275000,-1155.60166761,0.00027711,2]
[423145213,1779892275000,-269.22,0.00027397,10]
[423145221,1779892275000,-150.0,0.00028078,2]
[423145226,1779892275000,-190.97,0.000285,7]
[423145211,1779892275000,-323.06,0.00027397,10]
[423145224,1779892275000,-1360.8,0.00028267,2]
[423145223,1779892275000,-4309.17,0.00028082,7]
[423145235,1779892275000,-177.683343,0.00028767,7]
[423145234,1779892275000,-184.999835,0.00028767,7]
[423145232,1779892275000,-1382.569618,0.00028767,7]
[423145230,1779892275000,-1382.569618,0.00028767,7]
[423145229,1779892275000,-153.09,0.00028762,2]
[423145239,1779892275000,-288.0,0.00028808,2]
[423145225,1779892275000,-173.80308047,0.00028419,2]
[423145231,1779892275000,-1382.569618,0.00028767,7]
[423145233,1779892275000,-1382.569618,0.00028767,7]
[423145222,1779892275000,-191.01081584,0.00028078,2]
[423145236,1779892275000,-150.0,0.00028767,2]
[423145228,1779892275000,-271.34,0.00028521,120]
[423145227,1779892275000,-5733.66,0.000285,14]
[423145321,1779892276000,-151.0,0.00030137,7]
[423145301,1779892276000,-645.20139965,0.0003013,2]
[423145304,1779892276000,-157325.60403794,0.0003013,7]
[423145308,1779892276000,-1183.951803,0.0003013,7]
[423145305,1779892276000,-1183.951803,0.0003013,7]
[423145302,1779892276000,-262.56900006,0.0003013,120]
[423145306,1779892276000,-1183.951803,0.0003013,7]
[423145307,1779892276000,-1183.951803,0.0003013,7]
[423145310,1779892276000,-162.306659,0.0003013,7]
[423145320,1779892276000,-4773.12608269,0.00030135,120]
[423145298,1779892276000,-1768.85376,0.0003,120]
[423145303,1779892276000,-205.25366082,0.0003013,2]
[423145312,1779892276000,-151.0,0.0003013,7]
[423145311,1779892276000,-151.0,0.0003013,7]
[423145317,1779892276000,-1382.569618,0.0003013,7]
[423145315,1779892276000,-224.205825,0.0003013,7]
[423145319,1779892276000,-1382.569618,0.0003013,7]
[423145313,1779892276000,-151.0,0.0003013,7]
[423145318,1779892276000,-1382.569618,0.0003013,7]
[423145314,1779892276000,-151.0,0.0003013,7]
[423145316,1779892276000,-1382.569618,0.0003013,7]
[423145322,1779892276000,-197.284723,0.00030137,7]
[423145300,1779892276000,-300.0,0.00030129,10]
[423145325,1779892276000,-220.58,0.00030137,2]
[423145309,1779892276000,-151.0,0.0003013,7]
[423145299,1779892276000,-15302.86476602,0.00030114,2]
[423145276,1779892276000,-1040.0,0.00029753,30]
[423145289,1779892276000,-54613.35482456,0.0003,10]
[423145324,1779892276000,-200.0,0.00030137,2]
[423145270,1779892276000,-364.0,0.00029725,30]
[423145273,1779892276000,-210.4189557,0.00029751,5]
[423145284,1779892276000,-189.46047639,0.00029999,10]
[423145283,1779892276000,-241.23665085,0.0002999,2]
[423145272,1779892276000,-347.60616094,0.00029751,2]
[423145274,1779892276000,-188.64555151,0.00029751,7]
[423145279,1779892276000,-5733.66,0.000298,14]
[423145277,1779892276000,-190.0,0.00029753,30]
[423145275,1779892276000,-189.0,0.00029753,30]
[423145280,1779892276000,-184.26467155,0.00029895,2]
[423145281,1779892276000,-289.79158953,0.00029895,2]
[423145282,1779892276000,-170.6132302,0.00029895,2]
[423145278,1779892276000,-190.97,0.000298,7]
[423145294,1779892276000,-165.88679212,0.0003,2]
[423145286,1779892276000,-7000.0,0.0003,3]
[423145287,1779892276000,-330.58323694,0.0003,120]
[423145285,1779892276000,-300.0,0.00029999,10]
[423145288,1779892276000,-856.78229397,0.0003,2]
[423145296,1779892276000,-200.0,0.0003,2]
[423145292,1779892276000,-1849.69793934,0.0003,2]
[423145290,1779892276000,-2000.0,0.0003,3]
[423145293,1779892276000,-1000.0,0.0003,2]
[423145295,1779892276000,-25000.0,0.0003,2]
[423145291,1779892276000,-1123.40053171,0.0003,2]
[423145297,1779892276000,-200.0,0.0003,2]
[423145326,1779892276000,-150.0,0.00030205,2]
[423145271,1779892276000,-218.0,0.00029725,30]
[423145323,1779892276000,-246.37,0.00030137,2]
[423145358,1779892276000,-484.16206517,0.0003123,5]
[423145360,1779892276000,-565.93665454,0.00031288,7]
[423145362,1779892276000,-192.18,0.000313,7]
[423145357,1779892276000,-631.25686709,0.0003123,5]
[423145361,1779892276000,-155.207636,0.00031288,7]
[423145363,1779892276000,-213.52814154,0.00031477,2]
[423145366,1779892276000,-158.71,0.00031633,30]
[423145372,1779892276000,-166.52,0.00031666,30]
[423145364,1779892276000,-1155.60166761,0.0003161,2]
[423145365,1779892276000,-332.21,0.00031618,2]
[423145367,1779892276000,-256.03,0.00031634,30]
[423145374,1779892276000,-168.1722,0.00031716,2]
[423145369,1779892276000,-153.09,0.00031638,2]
[423145371,1779892276000,-293.26647947,0.00031665,2]
[423145368,1779892276000,-166.51,0.00031636,30]
[423145370,1779892276000,-153.62,0.00031663,30]
[423145376,1779892276000,-158.0,0.00031725,30]
[423145375,1779892276000,-183.0,0.00031725,30]
[423145377,1779892276000,-254.0,0.00031725,30]
[423145379,1779892276000,-471.0,0.00031725,30]
[423145382,1779892276000,-364.0,0.00031725,30]
[423145381,1779892276000,-157.0,0.00031725,30]
[423145380,1779892276000,-170.0,0.00031725,30]
[423145378,1779892276000,-254.0,0.00031725,30]
[423145331,1779892276000,-242.08103259,0.00030638,5]
[423145352,1779892276000,-200.0,0.00031096,2]
[423145354,1779892276000,-233.43335116,0.0003123,7]
[423145373,1779892276000,-206.41,0.00031679,30]
[423145359,1779892276000,-236.60698335,0.0003123,7]
[423145332,1779892276000,-4309.17,0.00030669,7]
[423145356,1779892276000,-213.13909119,0.0003123,7]
[423145330,1779892276000,-420.83791139,0.00030638,5]
[423145327,1779892276000,-1360.8,0.00030239,2]
[423145328,1779892276000,-168.5,0.00030284,7]
[423145329,1779892276000,-521.40924141,0.00030638,2]
[423145334,1779892276000,-377.29110303,0.00030695,7]
[423145344,1779892276000,-189.0,0.00030753,30]
[423145337,1779892276000,-254.0,0.00030725,30]
[423145339,1779892276000,-471.0,0.00030725,30]
[423145338,1779892276000,-254.0,0.00030725,30]
[423145335,1779892276000,-183.0,0.00030725,30]
[423145341,1779892276000,-157.0,0.00030725,30]
[423145333,1779892276000,-153.09,0.00030679,2]
[423145355,1779892276000,-695.21232188,0.0003123,2]
[423145353,1779892276000,-286.73598144,0.00031227,7]
[423145336,1779892276000,-158.0,0.00030725,30]
[423145351,1779892276000,-5733.66,0.00031,14]
[423145347,1779892276000,-513.0,0.00030763,8]
[423145348,1779892276000,-350.42967705,0.00031,5]
[423145349,1779892276000,-254.13290355,0.00031,120]
[423145350,1779892276000,-190.97,0.00031,7]
[423145345,1779892276000,-1040.0,0.00030753,30]
[423145340,1779892276000,-170.0,0.00030725,30]
[423145342,1779892276000,-364.0,0.00030725,30]
[423145343,1779892276000,-218.0,0.00030725,30]
[423145346,1779892276000,-190.0,0.00030753,30]
[423145423,1779892277000,-179.82120625,0.00032,120]
[423145422,1779892277000,-237.74569267,0.00032,120]
[423145434,1779892277000,-256.03,0.00032109,7]
[423145433,1779892277000,-343.0,0.00032038,2]
[423145419,1779892277000,-167.31995719,0.00032,120]
[423145414,1779892277000,-204.70115116,0.00032,120]
[423145418,1779892277000,-178.17649556,0.00032,120]
[423145416,1779892277000,-228.59045342,0.00032,120]
[423145417,1779892277000,-198.52157595,0.00032,120]
[423145412,1779892277000,-177.15756749,0.00032,120]
[423145424,1779892277000,-213.22249227,0.00032,120]
[423145420,1779892277000,-200.6361202,0.00032,120]
[423145429,1779892277000,-200.0,0.00032038,2]
[423145438,1779892277000,-2500.0,0.0003223,120]
[423145430,1779892277000,-200.0,0.00032038,2]
[423145428,1779892277000,-200.0,0.00032038,2]
[423145432,1779892277000,-200.0,0.00032038,2]
[423145431,1779892277000,-200.0,0.00032038,2]
[423145426,1779892277000,-200.0,0.00032038,2]
[423145425,1779892277000,-713.25975205,0.00032,120]
[423145436,1779892277000,-206.41,0.00032149,7]
[423145435,1779892277000,-180.0,0.00032139,8]
[423145437,1779892277000,-1360.8,0.0003221,5]
[423145439,1779892277000,-328.78,0.00032233,2]
[423145441,1779892277000,-3806.237,0.00032348,32]
[423145410,1779892277000,-205.77743576,0.00032,120]
[423145427,1779892277000,-200.0,0.00032038,2]
[423145413,1779892277000,-223.4879805,0.00032,120]
[423145383,1779892277000,-218.0,0.00031725,30]
[423145421,1779892277000,-200.79846749,0.00032,120]
[423145384,1779892277000,-189.0,0.00031753,30]
[423145385,1779892277000,-1040.0,0.00031753,30]
[423145391,1779892277000,-1555.496535,0.00031759,7]
[423145387,1779892277000,-462.613322,0.00031759,7]
[423145386,1779892277000,-190.0,0.00031753,30]
[423145392,1779892277000,-1555.496535,0.00031759,7]
[423145390,1779892277000,-462.613322,0.00031759,7]
[423145388,1779892277000,-462.613322,0.00031759,7]
[423145389,1779892277000,-462.613322,0.00031759,7]
[423145394,1779892277000,-1555.496535,0.00031759,7]
[423145393,1779892277000,-1555.496535,0.00031759,7]
[423145397,1779892277000,-5733.66,0.000319,14]
[423145395,1779892277000,-187.442691,0.00031759,7]
[423145396,1779892277000,-190.97,0.000319,7]
[423145399,1779892277000,-168.5,0.00031969,2]
[423145400,1779892277000,-216.67,0.00031995,2]
[423145402,1779892277000,-191.6177964,0.00032,120]
[423145398,1779892277000,-4309.17,0.00031931,30]
[423145404,1779892277000,-202.18472586,0.00032,120]
[423145403,1779892277000,-778.01152156,0.00032,120]
[423145409,1779892277000,-207.28396013,0.00032,120]
[423145408,1779892277000,-188.97933496,0.00032,120]
[423145405,1779892277000,-179.51154846,0.00032,120]
[423145407,1779892277000,-189.69389676,0.00032,120]
[423145406,1779892277000,-194.25778938,0.00032,120]
[423145401,1779892277000,-187.35224698,0.00032,120]
[423145411,1779892277000,-174.91040486,0.00032,120]
[423145415,1779892277000,-180.73259399,0.00032,120]
[423145440,1779892277000,-158.71,0.00032346,7]
[423145442,1779892277000,-237.942,0.00032348,32]
[423145444,1779892277000,-256.03,0.00032584,2]
[423145476,1779892277000,-207.28396013,0.00033,120]
[423145479,1779892277000,-180.73259399,0.00033,120]
[423145480,1779892277000,-198.52157595,0.00033,120]
[423145477,1779892277000,-205.77743576,0.00033,120]
[423145478,1779892277000,-174.91040486,0.00033,120]
[423145482,1779892277000,-200.79846749,0.00033,120]
[423145481,1779892277000,-200.6361202,0.00033,120]
[423145484,1779892277000,-32887.66597411,0.00033,2]
[423145483,1779892277000,-713.25975205,0.00033,120]
[423145493,1779892277000,-15302.86476602,0.00033157,2]
[423145487,1779892277000,-158.71,0.00033059,2]
[423145495,1779892277000,-4309.17,0.00033194,30]
[423145485,1779892277000,-192.18,0.00033,7]
[423145492,1779892277000,-510.0,0.00033156,10]
[423145494,1779892277000,-298.71,0.00033165,120]
[423145489,1779892277000,-166.51,0.00033061,2]
[423145488,1779892277000,-256.03,0.00033059,30]
[423145490,1779892277000,-222.2,0.00033087,30]
[423145491,1779892277000,-206.41,0.00033089,30]
[423145486,1779892277000,-215.46156935,0.00033002,2]
[423145497,1779892277000,-226.80449042,0.000333,2]
[423145500,1779892277000,-2000.0,0.0003332,7]
[423145498,1779892277000,-162.28206899,0.000333,2]
[423145446,1779892277000,-153.09,0.00032596,2]
[423145499,1779892277000,-191.21061057,0.000333,2]
[423145501,1779892277000,-1500.0,0.000334,7]
[423145502,1779892277000,-1000.0,0.0003343,10]
[423145475,1779892277000,-189.69389676,0.00033,120]
[423145474,1779892277000,-191.21061057,0.00033,2]
[423145496,1779892277000,-1000.0,0.00033293,10]
[423145473,1779892277000,-162.28206899,0.00033,2]
[423145472,1779892277000,-226.80449042,0.00033,2]
[423145443,1779892277000,-166.51,0.00032348,7]
[423145448,1779892277000,-206.41,0.00032619,2]
[423145458,1779892277000,-218.0,0.00032725,30]
[423145459,1779892277000,-153.62,0.00032725,7]
[423145447,1779892277000,-222.2,0.00032617,2]
[423145449,1779892277000,-513.0,0.00032657,10]
[423145451,1779892277000,-158.0,0.00032725,30]
[423145453,1779892277000,-254.0,0.00032725,30]
[423145450,1779892277000,-183.0,0.00032725,30]
[423145457,1779892277000,-364.0,0.00032725,30]
[423145455,1779892277000,-170.0,0.00032725,30]
[423145454,1779892277000,-471.0,0.00032725,30]
[423145445,1779892277000,-500.0,0.00032588,2]
[423145456,1779892277000,-157.0,0.00032725,30]
[423145452,1779892277000,-254.0,0.00032725,30]
[423145461,1779892277000,-1040.0,0.00032753,30]
[423145464,1779892277000,-5733.66,0.000328,14]
[423145467,1779892277000,-1940.36,0.00032877,30]
[423145471,1779892277000,-778.01152156,0.00033,120]
[423145466,1779892277000,-167.44250355,0.00032877,2]
[423145469,1779892277000,-187.35224698,0.00033,120]
[423145463,1779892277000,-190.97,0.000328,7]
[423145468,1779892277000,-840.0,0.00032877,30]
[423145465,1779892277000,-246.37,0.00032877,2]
[423145470,1779892277000,-191.6177964,0.00033,120]
[423145462,1779892277000,-190.0,0.00032753,30]
[423145460,1779892277000,-189.0,0.00032753,30]
[423145528,1779892278000,-228.53078202,0.00033781,7]
[423145540,1779892278000,-499.08255755,0.00033997,27]
[423145529,1779892278000,-153.62,0.00033787,2]
[423145532,1779892278000,-168.5,0.00033884,30]
[423145535,1779892278000,-207.28396013,0.000339,120]
[423145545,1779892278000,-11438.18007928,0.00034,120]
[423145534,1779892278000,-778.01152156,0.000339,120]
[423145536,1779892278000,-205.77743576,0.000339,120]
[423145544,1779892278000,-162.28206899,0.00034,2]
[423145543,1779892278000,-226.80449042,0.00034,2]
[423145533,1779892278000,-187.35224698,0.000339,120]
[423145547,1779892278000,-152.0,0.00034026,7]
[423145537,1779892278000,-200.79846749,0.000339,120]
[423145542,1779892278000,-500.0,0.00033997,27]
[423145541,1779892278000,-500.0,0.00033997,27]
[423145539,1779892278000,-1000.0,0.00033978,10]
[423145557,1779892278000,-152.0,0.00034251,7]
[423145558,1779892278000,-226.80449042,0.000343,2]
[423145546,1779892278000,-256.03,0.0003401,2]
[423145548,1779892278000,-152.0,0.00034026,7]
[423145549,1779892278000,-206.41,0.0003403,2]
[423145550,1779892278000,-152.0,0.00034095,7]
[423145527,1779892278000,-166.51,0.00033773,30]
[423145538,1779892278000,-713.25975205,0.000339,120]
[423145524,1779892278000,-1040.0,0.00033753,30]
[423145520,1779892278000,-364.0,0.00033725,30]
[423145530,1779892278000,-150.69734918,0.000338,120]
[423145556,1779892278000,-204.0,0.00034247,90]
[423145507,1779892278000,-500.0,0.00033589,2]
[423145503,1779892278000,-256.03,0.00033534,7]
[423145505,1779892278000,-206.41,0.00033559,7]
[423145504,1779892278000,-222.2,0.00033558,7]
[423145506,1779892278000,-1000.0,0.00033567,10]
[423145508,1779892278000,-190.97,0.000336,30]
[423145510,1779892278000,-226.80449042,0.000337,2]
[423145511,1779892278000,-162.28206899,0.000337,2]
[423145512,1779892278000,-1000.0,0.00033704,10]
[423145509,1779892278000,-5733.66,0.000336,14]
[423145516,1779892278000,-254.0,0.00033725,30]
[423145513,1779892278000,-183.0,0.00033725,30]
[423145514,1779892278000,-158.0,0.00033725,30]
[423145519,1779892278000,-157.0,0.00033725,30]
[423145515,1779892278000,-254.0,0.00033725,30]
[423145518,1779892278000,-170.0,0.00033725,30]
[423145517,1779892278000,-471.0,0.00033725,30]
[423145522,1779892278000,-159.19,0.00033735,2]
[423145525,1779892278000,-190.0,0.00033753,30]
[423145531,1779892278000,-1000.0,0.00033841,10]
[423145523,1779892278000,-189.0,0.00033753,30]
[423145526,1779892278000,-158.71,0.00033772,30]
[423145521,1779892278000,-218.0,0.00033725,30]
[423145555,1779892278000,-200.0,0.00034247,90]
[423145554,1779892278000,-200.0,0.00034247,90]
[423145551,1779892278000,-959.0,0.000341,15]
[423145584,1779892278000,-500.0,0.00034452,60]
[423145585,1779892278000,-500.0,0.00034452,60]